Cogmind - Beta 12 @@@ ROGUE MODE // 2023.10.10 @ 16:31:53 Player: Figgis Result: Destroyed by G-47 Trooper with Particle Gun Performance ------------- Evolutions (0) 0 Regions Visited (2) 400 Robots Destroyed (19) 95 Value Destroyed (406) 406 Prototype IDs (2) 40 Alien Tech Used (0) 0 Bonus (0) 0 TOTAL SCORE: 941 Bonus ------- None Cogmind --------- Core Integrity 0/250 Matter 239/300 Energy 55/100 System Corruption 0% Temperature Cool (12) Movement Core (450) Ox8 Location -10/Mines Parts ------- > --- POWER (1) -------- (None) > --- PROPULSION (2) --- Wheel Wheel > --- UTILITY (2) ------ Large Storage Unit Sensor Array > --- WEAPON (2) ------- Heavy Assault Rifle Grenade Launcher > --- INVENTORY (15) --- Improved Ion Engine Improved Ion Engine Improved Ion Engine Wheel Heat Sink Large Matter Pod (15) Heavy Assault Rifle Mining Claw Peak State ------------ > --- POWER ------------ Light Nuclear Core > --- PROPULSION ------- Wheel Compact Wheel > --- UTILITY ---------- Large Storage Unit Sensor Array > --- WEAPON ----------- Heavy Assault Rifle Heavy Assault Rifle > --- INVENTORY -------- Improved Ion Engine Improved Ion Engine Improved Ion Engine Wheel Heat Sink Heavy Assault Rifle Heavy Assault Rifle Grenade Launcher [Rating: 12] Favorites ----------- Power Improved Ion Engine Engine Improved Ion Engine Power Core Light Nuclear Core Propulsion Compact Wheel Wheel Compact Wheel Utility Sensor Array Device Sensor Array Storage Small Storage Unit Weapon Heavy Assault Rifle Energy Gun Medium Laser Ballistic Gun Heavy Assault Rifle Launcher Grenade Launcher Build | -11 -10 -10 ------- Run | Jun Mat Min Slots Evolved . | . . . Power . | . . . Propulsion . | . . . Utility . | . . . Weapon . | . . . Parts Attached 18 | 6 8 4 Power 3 | 1 2 . Engine 2 | 1 1 . Core 1 | . 1 . Reactor . | . . . Propulsion 5 | 2 1 2 Treads . | . . . Leg . | . . . Wheel 5 | 2 1 2 Hover . | . . . Flight . | . . . Utility 4 | 1 3 . Device 2 | . 2 . Storage 2 | 1 1 . Processor . | . . . Hackware . | . . . Protection . | . . . Artifact . | . . . Weapon 6 | 2 2 2 Energy Gun 1 | 1 . . Energy Cannon . | . . . Ballistic Gun 4 | 1 2 1 Ballistic Cannon . | . . . Launcher 1 | . . 1 Special Weapon . | . . . Impact Weapon . | . . . Slashing Weapon . | . . . Piercing Weapon . | . . . Special Melee Weapon . | . . . Unidentified Prototypes . | . . . Parts Lost 6 | . 1 5 Power 1 | . . 1 Propulsion 3 | . 1 2 Utility . | . . . Weapon 2 | . . 2 Highest Loss Streak 4 | . 1 4 To Critical Strikes . | . . . Average Slot Usage (%) 94 | . 94 93 Engine 8 | . 9 . Core 5 | . 4 14 Wheel 23 | . 23 23 Device 13 | . 13 14 Storage 14 | . 14 14 Energy Gun 1 | . 2 . Ballistic Gun 25 | . 25 27 Naked Turns . | . . . Heaviest Build 32 | 13 32 32 Greatest Support 26 | 26 26 26 Greatest Overweight (x) 7 | . 1 7 Average Overweight (x) . | . . 1 Largest Inventory Capacity 15 | 8 15 15 Average Capacity 10 | 6 9 15 Most Carried 11 | 5 11 11 Average Carried 7 | 2 6 10 Final Capacity 15 | 8 15 15 Final Carried 11 | 2 11 8 Class Distribution -------------------- 100% | Mutant Dominant Class ---------------- Mutant | -10/Materials Mutant | -10/Mines Resources | -11 -10 -10 ----------- Run | Jun Mat Min Matter Collected 641 | 260 331 50 Remotely . | . . . Salvage Created 610 | . 515 95 Parts 42 | . 34 8 Haulers Intercepted 1 | . 1 . Recyclers Shooed . | . . . Parts Field Recycled . | . . . Retrieved Matter . | . . . Parts Self-Destructed . | . . . Prevented . | . . . Kills | -11 -10 -10 ------- Run | Jun Mat Min Combat Hostiles Destroyed 11 | . 7 4 Guns 11 | . 7 4 Classes Destroyed 6 | . 5 1 Worker 3 | . 3 . Builder 1 | . 1 . Hauler 1 | . 1 . Watcher 3 | . 3 . Swarmer 3 | . . 3 Grunt 8 | . 7 1 Best Kill Streak 4 | . 4 3 Combat Bots Only 3 | . 2 3 Max Kills in Single Turn 1 | . 1 1 Gunslinging . | . . . Exploded . | . . . Melee . | . . . Uniques/NPCs Destroyed . | . . . Combat | -11 -10 -10 -------- Run | Jun Mat Min Damage Taken 813 | . 449 364 Core 254 | . 121 133 Absorbed by Shields . | . . . Core Remaining (%) 100 | 100 . . Volleys Fired 62 | . 46 16 Largest 2 | . 2 2 Hottest 70 | . 70 46 Shots Fired 119 | . 92 27 Gun 119 | . 92 27 Cannon . | . . . Launcher . | . . . Special . | . . . Kinetic 115 | . 88 27 Thermal 4 | . 4 . Explosive . | . . . Electromagnetic . | . . . Robot Hit Streak 9 | . 9 4 Robot Miss Streak 6 | . 6 3 Penetration Max . | . . . Secondary Targets 2 | . 2 . Max Gunslinging Chain 1 | . 1 . Shots Hit Robots 76 | . 60 16 Core Hits 28 | . 22 6 Critical Kills . | . . . Critical Parts Destroyed . | . . . Critical Strikes . | . . . Melee Attacks . | . . . Impact . | . . . Slashing . | . . . Piercing . | . . . Sneak Attacks . | . . . Combat Hostiles . | . . . Follow-up Attacks . | . . . Damage Inflicted 1215 | . 963 252 Guns 1215 | . 963 252 Cannons . | . . . Explosions . | . . . Melee . | . . . Ramming . | . . . Kinetic 1177 | . 925 252 Thermal 38 | . 38 . Explosive . | . . . Electromagnetic . | . . . Impact . | . . . Slashing . | . . . Piercing . | . . . Highest Corruption . | . . . Average Corruption . | . . . Corruption Purged . | . . . Corruption Blocked . | . . . Overload Shots . | . . . Overflow Damage . | . . . Projectiles . | . . . Explosions . | . . . Melee . | . . . Knockbacks . | . . . Impact . | . . . Kinetic . | . . . Secondary . | . . . Self-Inflicted Damage . | . . . Shots . | . . . Rammed . | . . . Targets Rammed . | . . . Kicked . | . . . Crushed . | . . . Highest Temperature 70 | . 70 15 Average Temperature 14 | . 16 6 Received Heat Transfer 429 | . 249 180 Siege Activations . | . . . Robots Corrupted . | . . . Combat Hostiles . | . . . Parts Fried . | . . . Impact Corruptions . | . . . Robots Melted . | . . . Combat Hostiles . | . . . Parts Melted . | . . . Heat Transferred 111 | . 111 . Parts Sabotaged . | . . . Parts Stolen . | . . . Parts Stripped . | . . . Power Chain Reactions . | . . . Missiles Intercepted . | . . . Alert | -11 -10 -10 ------- Run | Jun Mat Min Peak Influence 205 | . 205 196 Initial 66 | . . 66 Average 105 | . 105 146 Maximum Alert Level 1 | . 1 . Low Security (%) 94 | 100 93 100 Level 1 5 | . 6 . Level 2 . | . . . Level 3 . | . . . Level 4 . | . . . Level 5 . | . . . High Security . | . . . Max Security . | . . . Squads Dispatched 3 | . 3 . Investigation 1 | . 1 . Extermination . | . . . Reinforcement 2 | . 2 . Assault . | . . . Garrison . | . . . Intercept . | . . . Searches Triggered . | . . . Construction Impeded . | . . . Haulers Reinforced . | . . . Active Scanning Responses . | . . . Cargo Convoy Interrupts . | . . . Stealth | -11 -10 -10 --------- Run | Jun Mat Min Distress Signals . | . . . Communications Jammed . | . . . Distress Signals . | . . . Times Spotted 22 | . 14 8 Peak Tracking Total 3 | . 3 3 Tactical Retreats 1 | . . 1 Traps | -11 -10 -10 ------- Run | Jun Mat Min Traps Triggered 1 | . 1 . Indirectly . | . . . Trap Hack Attempts . | . . . Triggered . | . . . Disarmed . | . . . Reprogrammed . | . . . Reused . | . . . Traps Extracted . | . . . Installed . | . . . Triggered . | . . . Machines | -11 -10 -10 ---------- Run | Jun Mat Min Machines Disabled 2 | . 1 1 Max in Single Turn 1 | . 1 1 Machines Repaired . | . . . Machines Sabotaged . | . . . Overloaded Fab Kills . | . . . Hacking | -11 -10 -10 --------- Run | Jun Mat Min Machines Accessed 5 | . 5 . Terminals 5 | . 5 . Fabricators . | . . . Repair Stations . | . . . Recycling Units . | . . . Scanalyzers . | . . . Garrison Access . | . . . Total Hacks 12 | . 12 . Successful 7 | . 7 . Failed 5 | . 5 . Catastrophic 2 | . 2 . Database Lockouts . | . . . Manual 10 | . 10 . Terminals 12 | . 12 . Fabricators . | . . . Repair Stations . | . . . Recycling Units . | . . . Scanalyzers . | . . . Garrison Access . | . . . Terminal Hacks 7 | . 7 . Robot Analysis 4 | . 4 . Prototype ID Bank 1 | . 1 . Branch Access Points 1 | . 1 . Zone Layout 1 | . 1 . Fabricator Hacks . | . . . Repair Station Hacks . | . . . Recycling Unit Hacks . | . . . Scanalyzer . | . . . Garrison Access Hacks . | . . . Unauthorized Hacks . | . . . Terminals . | . . . Fabricators . | . . . Repair Stations . | . . . Recycling Units . | . . . Scanalyzers . | . . . Garrison Access . | . . . Data Cores Recovered . | . . . Used . | . . . Hacking Detections 5 | . 5 . Full Trace Events . | . . . Feedback Events . | . . . Feedback Blocked . | . . . Robot Schematics Acquired . | . . . Robots Built . | . . . Authchips . | . . . Time . | . . . Total Robot Build Rating . | . . . Part Schematics Acquired . | . . . Parts Built . | . . . Authchips . | . . . Time . | . . . Total Part Build Rating . | . . . Parts Repaired . | . . . Time . | . . . Parts Recycled . | . . . Recycled Matter . | . . . Retrieved Matter . | . . . Retrieved Components . | . . . Parts Scanalyzed . | . . . Part Schematics Acquired . | . . . Parts Damaged . | . . . Bothacking | -11 -10 -10 ------------ Run | Jun Mat Min Used RIF Installer . | . . . Robots Hacked . | . . . Non-combat . | . . . Combat . | . . . Robot Hacks Applied . | . . . Relay Couplers Released . | . . . Fabnet Peak Effective % . | . . . Robots Rewired . | . . . Allies Hacked . | . . . Hacks Repelled . | . . . Allies | -11 -10 -10 -------- Run | Jun Mat Min Total Allies . | . . . Largest Group . | . . . Highest-Rated Group . | . . . Highest-Rated Ally . | . . . Total Orders . | . . . Ally Attacks . | . . . Total Damage . | . . . Kills . | . . . Allies Corrupted . | . . . Allies Melted . | . . . Intel | -11 -10 -10 ------- Run | Jun Mat Min Robot Analysis Total 3 | . 3 . Derelict Logs Recovered . | . . . Drone Launches . | . . . Drone Recoveries . | . . . Exploration | -11 -10 -10 ------------- Run | Jun Mat Min Turns Passed 908 | 54 714 140 Spaces Moved 666 | 42 542 82 Core 4 | 3 . 1 Treads . | . . . Legs . | . . . Wheels 662 | 39 542 81 Hover . | . . . Flight . | . . . Fastest Speed 50 | 50 90 105 Average Speed 98 | 92 96 108 Slowest Speed 400 | 100 115 400 Overloaded Moves . | . . . Propulsion Burnouts . | . . . Robots Hopped . | . . . Cave-ins Triggered . | . . . Exploration Rate (%) 34 | 4 78 20 Regions Visited 2 Branch Regions 1 Pre-discovered Areas . | . . . Known Exits Taken 1 | . 1 . Unknown Exits Taken 1 | 1 . . Scrap Searched 1 | . . 1 Spaces Dug . | . . . Terrain Destroyed . | . . . Melee . | . . . Projectile . | . . . AOE . | . . . Terrain Rammed . | . . . Walls Destroyed . | . . . Machines Disabled . | . . . Actions | -11 -10 -10 --------- Run | Jun Mat Min Total 804 | 56 642 106 Wait 26 | 2 21 3 Move 664 | 41 541 82 Hop . | . . . Pick Up 25 | 7 17 1 Fast Attach 2 | 1 1 . Attach 11 | 5 2 4 Detach . | . . . Swap 5 | . 5 . Drop 9 | . 9 . Fire 62 | . 46 16 Melee . | . . . Ram . | . . . Kick . | . . . Crush . | . . . Escape Stasis . | . . . Rewire . | . . . Trap . | . . . Miscellaneous . | . . . Route ------- -11/Junkyard -10/Materials (discovered 3 exits: [*Mat] / *Min x2) -10/Mines History --------- Turn | Location | Event 17 | -11/Junkyard | Discovered new exit (range 16) 55 | -11/Junkyard | Entered Materials 185 | -10/Materials | Identified exit to Mines 220 | -10/Materials | Discovered new exit (range 13) 315 | -10/Materials | Build established: Mutant 769 | -10/Materials | Entered Mines 774 | -10/Mines | Core integrity fell below 50% 816 | -10/Mines | Found a hidden stash of uninstalled traps 904 | -10/Mines | Core integrity fell below 20% 909 | -10/Mines | Destroyed by G-47 Trooper with Particle Gun Last Messages --------------- 00771_ Hvy. Assault Rifle destroyed. 00773_ S-10 Pest destroyed. 00785_ Acquired 20 matter. 00787_ Acquired 11 matter. 00789_ Acquired 4 matter. 00800_ Searching scrap... 00800_ Found ECM Suite. 00800_ Found Lrg. Matter Pod. 00800_ Found 15 Matter. 00802_ Acquired Lrg. Matter Pod. 00803_ Acquired 15 matter. 00816_ A stash of uninstalled traps is collected here! 00875_ Seismic Survey Station disabled. 00876_ Com. Wheel destroyed. 00881_ G-34 Mercenary destroyed. 00882_ Wheel destroyed. 00891_ Hvy. Assault Rifle destroyed. 00899_ Destroyed Lgt. Nuclear Core. 00900_ Lgt. Nuclear Core destroyed. 00907_ Critical hit (Burn: +37). Map ----- +----------------------------------------------------+ | ?????????????????????????????????????????????????? | | ?????????????????????????????????????????????????? | | ?????????????????????????????????????????????????? | | ?????????????????????????????????????????????????? | | ?????????????????????????????????????????????????? | | ?????????????????????????????????????????????????? | | ?????????????????????????????????????????????????? | | ?????????????????????????????????????????????????? | | ?????????????????????????????????????????????????? | | ?????????????????????????????????????????????????? | | ?????????????????????????????????????????????????? | | ?????????????????????????????????????????????????? | | ?????????????????????????????????????????????????? | | ?????????????????????????????????????????????????? | | ?????????????????????????????????????????????????? | | ?????????????????????????????????????????????????? | | ?????????????????????????????????????????????????? | | ?????????????????????????????????????????????????? | | ?????????????????????????????????????????????????? | | ?????????????????????????????????????????????????? | | ?????????????????????????????????????????????????? | | ?????????????????### ????????????????????????????? | | ?????????????????# ???????????????????????????? | | ?????????????????# "" #######???????????????????? | | ?????????????????# "" [%= g #????????????????? ?? | | ?????????????????# """ g @g #???????????????? # | | ?????????????????# #### #???????????????? # | | ?????????????????# ???????# #???????????????? # | | ??????????????????????????# #######?????????? # | | ??????????????????????????# ? #????????? | | ??????????????????????????# ##### #????????? | | ??????????????????????????# #???# #????????? | | ??????????????????????????# #???# #????????# | | ??????????????????????????# #???# #???????? | | ?????????????????????????## #??# #??????## | | ??????????????????????#### #?# ##?????# | | ????????????????????# ## ##???## ?? | | ?????????????????????# ##?## #???? | | ????????????????????????# ### #????? | | ????????????????????????## ##????? | | ?????????????????????????#### ##?????? | | ????????????????????????????## #??????? | | ?????????????????????????????## ### ##??????? | | ??????????????????????????????## #?####??????## | | ???????????????????????????????### #????????### | | ?????????????????????????????????# #???????## | | ?????????????????????????????#####! ######### | | ?????????????????????????????# && | | ?????????????????????????????# ##############& & # | | ?????????????????????????##### ##??????????## & ## | +----------------------------------------------------+ Best States ------------- Heat Dissipation 25 Energy Generation 14 Energy Capacity 265 Matter Stores 300 Matter Capacity 300 Sight Range 16 Robot Scan Range 14 Terrain Scan Density 10 Evasion (%) 42 Item Schematics ----------------- None Robot Schematics ------------------ None Fabricated ------------ Nothing Alien Tech Used ----------------- None Achievements -------------- None Challenges ------------ None Game ------ Seed AlertForceThrower Manual? 0 Play Time 00:08:45 Cumulative 40.9 hours Start 2023.10.10 @ 15:53:57 End 2023.10.10 @ 16:31:53 Sessions 1 Manual Loads 0 Difficulty Rogue Special Mode None Game No. 76 Rogue 73 Adventurer 3 Explorer 0 Win Type - Total 0 Types 0/0/0/0/0/0/0/0/0 Lore% 25 Gallery% 41 Achievement% 31 Wizard Run 0 Options --------- ASCII 0 Keyboard 0 Movement Mouse Keybinds 0 Fullscreen 2 Font 18/SmallcapsGlow Map View 76x50 Tactical HUD 1 Map Filters NONE Filters NONE Steam 1 RUN: 5fcdfd05-da71-4662-a669-dfd4c66695ff